fUST/lending_fUST_20250702
["ID","MTS","AMOUNT","RATE_DAILY","PERIOD"]
[369037092,1751441443479,-460.0,0.00016712,2]
[369037094,1751441443488,-557.10188712,0.00016712,2]
[369037096,1751441443497,-267.562191,0.00016712,2]
[369037098,1751441443507,-460.0,0.00016712,2]
[369037100,1751441443516,-735.62,0.00016712,2]
[369037102,1751441443526,-700.62,0.00016712,2]
[369037104,1751441443535,-460.0,0.00016712,2]
[369037106,1751441443545,-460.0,0.00016712,2]
[369037108,1751441443554,-460.0,0.00016712,2]
[369037110,1751441443563,-460.0,0.00016712,2]
[369037112,1751441443573,-460.0,0.00016712,2]
[369037114,1751441443582,-460.0,0.00016712,2]
[369037116,1751441443591,-460.0,0.00016712,2]
[369037118,1751441443600,-151.0,0.00016712,2]
[369037120,1751441443609,-452.56627616,0.00016712,2]
[369037123,1751441443618,-460.0,0.00016712,2]
[369037125,1751441443628,-536.5,0.00016712,2]
[369037127,1751441443638,-469.0,0.00016712,2]
[369037129,1751441443647,-473.28005472,0.00016712,2]
[369037131,1751441443656,-460.0,0.00016712,2]
[369037148,1751441443801,-460.0,0.00016712,2]
[369037150,1751441443811,-151.29890249,0.00016712,2]
[369037152,1751441443821,-460.0,0.00016712,2]
[369037154,1751441443830,-460.0,0.00016712,2]
[369037156,1751441443839,-151.0,0.00016712,2]
[369037158,1751441443848,-460.0,0.00016712,2]
[369037160,1751441443857,-460.0,0.00016712,2]
[369037162,1751441443866,-460.0,0.00016712,2]
[369037164,1751441443876,-460.0,0.00016712,2]
[369037166,1751441443885,-460.0,0.00016712,2]
[369037168,1751441443893,-460.0,0.00016712,2]
[369037170,1751441443903,-460.0,0.00016712,2]
[369037172,1751441443912,-460.0,0.00016712,2]
[369037174,1751441443921,-151.0,0.00016712,2]
[369037176,1751441443931,-553.73119791,0.00016712,2]
[369037178,1751441443942,-293.83925212,0.00016712,2]
[369037180,1751441443951,-460.0,0.00016712,2]
[369037181,1751441443960,-151.0,0.00016712,2]
[369037182,1751441443970,-1338.344423,0.00016712,2]
[369037183,1751441443981,-1338.344423,0.00016712,2]
[369037185,1751441443990,-460.0,0.00016712,2]
[369037186,1751441443999,-460.0,0.00016712,2]
[369037188,1751441444008,-460.0,0.00016712,2]
[369037190,1751441444017,-460.0,0.00016712,2]
[369037192,1751441444027,-460.0,0.00016712,2]
[369037194,1751441444036,-429.60260954,0.00016712,2]
[369037196,1751441444045,-460.0,0.00016712,2]
[369037197,1751441444054,-460.0,0.00016712,2]
[369037198,1751441444062,-151.0,0.00016712,2]
[369037199,1751441444071,-460.0,0.00016712,2]
[369037200,1751441444080,-170.684196,0.00016712,2]
[369037201,1751441444089,-460.0,0.00016712,2]
[369037202,1751441444099,-460.0,0.00016712,2]
[369037203,1751441444108,-500.0,0.00016712,2]
[369037205,1751441444117,-460.0,0.00016712,2]
[369037206,1751441444126,-460.0,0.00016712,2]
[369037208,1751441444136,-556.67,0.00016712,2]
[369037210,1751441444146,-659.26,0.00016712,2]
[369037213,1751441444155,-460.0,0.00016712,2]
[369037215,1751441444165,-460.0,0.00016712,2]
[369037217,1751441444174,-168.046531,0.00016712,2]
[369037218,1751441444183,-460.0,0.00016712,2]
[369037220,1751441444192,-460.0,0.00016712,2]
[369037222,1751441444201,-151.0,0.00016712,2]
[369037224,1751441444211,-168.046531,0.00016712,2]
[369037227,1751441444221,-460.0,0.00016712,2]
[369037228,1751441444231,-461.0105055,0.00016712,2]
[369037230,1751441444240,-547.13,0.00016712,2]
[369037233,1751441444250,-460.0,0.00016712,2]
[369037235,1751441444259,-396.70137211,0.00016712,2]
[369037236,1751441444268,-705.14,0.00016712,2]
[369037239,1751441444277,-1940.82,0.00016712,2]
[369037241,1751441444286,-460.0,0.00016712,2]
[369037243,1751441444296,-565.48805791,0.00016712,2]
[369037244,1751441444305,-460.0,0.00016712,2]
[369037247,1751441444315,-460.0,0.00016712,2]
[369037249,1751441444324,-460.0,0.00016712,2]
[369037251,1751441444333,-460.0,0.00016712,2]
[369037253,1751441444343,-271.84469064,0.00016712,2]
[369037255,1751441444352,-460.0,0.00016712,2]
[369037257,1751441444362,-712.66,0.00016712,2]
[369037259,1751441444371,-460.0,0.00016712,2]
[369037261,1751441444380,-460.0,0.00016712,2]
[369037263,1751441444389,-460.0,0.00016712,2]
[369037265,1751441444398,-460.0,0.00016712,2]
[369037267,1751441444407,-460.0,0.00016712,2]
[369037269,1751441444416,-819.74,0.00016712,2]
[369037271,1751441444426,-5214.35,0.00016712,2]
[369037273,1751441444437,-151.0,0.00016712,2]
[369037275,1751441444446,-151.0,0.00016712,2]
[369037277,1751441444455,-502.99098845,0.00016712,2]
[369037279,1751441444465,-1560.64,0.00016712,2]
[369037281,1751441444474,-460.0,0.00016712,2]
[369037283,1751441444484,-460.0,0.00016712,2]
[369037285,1751441444493,-243.15,0.00016712,2]
[369037287,1751441444504,-664.930069,0.00016712,2]
[369037289,1751441444513,-460.0,0.00016712,2]
[369037291,1751441444523,-460.0,0.00016712,2]
[369037293,1751441444532,-664.930069,0.00016712,2]
[369037295,1751441444542,-460.0,0.00016712,2]
[369037297,1751441444551,-821.2,0.00016712,2]
[369037299,1751441444561,-646.41,0.00016712,2]
[369037301,1751441444571,-1196.87,0.00016712,2]
[369037303,1751441444581,-3084.42,0.00016712,2]
[369037305,1751441444590,-1468.84,0.00016712,2]
[369037307,1751441444600,-194.34861338,0.00016712,2]
[369037310,1751441444610,-460.0,0.00016712,2]
[369037312,1751441444619,-460.0,0.00016712,2]
[369037314,1751441444628,-460.0,0.00016712,2]
[369037315,1751441444637,-500.0,0.00016712,2]
[369037317,1751441444646,-460.0,0.00016712,2]
[369037319,1751441444655,-460.0,0.00016712,2]
[369037321,1751441444664,-460.0,0.00016712,2]
[369037323,1751441444673,-460.0,0.00016712,2]
[369037325,1751441444683,-460.0,0.00016712,2]
[369037327,1751441444693,-825.96,0.00016712,2]
[369037329,1751441444702,-635.85,0.00016712,2]
[369037331,1751441444712,-2951.4,0.00016712,2]
[369037334,1751441444722,-460.0,0.00016712,2]
[369037336,1751441444731,-460.0,0.00016712,2]
[369037338,1751441444741,-460.0,0.00016712,2]
[369037340,1751441444750,-502.23880938,0.00016712,2]
[369037342,1751441444759,-460.0,0.00016712,2]
[369037344,1751441444768,-460.0,0.00016712,2]
[369037346,1751441444778,-1024.46,0.00016712,2]
[369037347,1751441444787,-460.0,0.00016712,2]
[369037349,1751441444796,-744.53,0.00016712,2]
[369037351,1751441444806,-151.0,0.00016712,2]
[369037354,1751441444815,-153.373957,0.00016712,2]
[369037355,1751441444824,-460.0,0.00016712,2]
[369037357,1751441444834,-460.0,0.00016712,2]
[369037359,1751441444844,-460.0,0.00016712,2]
[369037361,1751441444853,-460.0,0.00016712,2]
[369037363,1751441444862,-1355.15,0.00016712,2]
[369037366,1751441444872,-460.0,0.00016712,2]
[369037368,1751441444882,-151.0,0.00016712,2]
[369037369,1751441444891,-153.373957,0.00016712,2]
[369037371,1751441444901,-460.0,0.00016712,2]
[369037373,1751441444911,-500.0,0.00016712,2]
[369037375,1751441444920,-180.5104101,0.00016712,2]
[369037377,1751441444929,-460.0,0.00016712,2]
[369037380,1751441444941,-460.0,0.00016712,2]
[369037382,1751441444951,-632.78,0.00016712,2]
[369037384,1751441444960,-700.68142,0.00016712,2]
[369037386,1751441444970,-460.0,0.00016712,2]
[369037387,1751441444979,-460.0,0.00016712,2]
[369037389,1751441444988,-340.57715624,0.00016712,2]
[369037391,1751441444998,-460.0,0.00016712,2]
[369037393,1751441445007,-700.68142,0.00016712,2]
[369037395,1751441445017,-460.0,0.00016712,2]
[369037397,1751441445027,-273.32037079,0.00016712,2]
[369037400,1751441445036,-460.0,0.00016712,2]
[369037402,1751441445045,-460.0,0.00016712,2]
[369037404,1751441445054,-460.0,0.00016712,2]
[369037405,1751441445064,-460.0,0.00016712,2]
[369037407,1751441445073,-460.0,0.00016712,2]
[369037410,1751441445083,-460.0,0.00016712,2]
[369037412,1751441445093,-460.0,0.00016712,2]
[369037414,1751441445102,-460.0,0.00016712,2]
[369037416,1751441445112,-460.0,0.00016712,2]
[369037418,1751441445121,-460.0,0.00016712,2]
[369037420,1751441445130,-460.0,0.00016712,2]
[369037422,1751441445139,-2453.99,0.00016712,2]
[369037424,1751441445150,-1406.74,0.00016712,2]
[369037426,1751441445159,-726.69,0.00016712,2]
[369037428,1751441445169,-460.0,0.00016712,2]
[369037430,1751441445177,-151.0,0.00016712,2]
[369037432,1751441445187,-2646.04,0.00016712,2]
[369037434,1751441445196,-160.0,0.00016712,2]
[369037436,1751441445206,-460.0,0.00016712,2]
[369037438,1751441445215,-151.0,0.00016712,2]
[369037440,1751441445225,-460.0,0.00016712,2]
[369037442,1751441445234,-460.0,0.00016712,2]
[369037444,1751441445243,-898.21,0.00016712,2]
[369037446,1751441445252,-151.0,0.00016712,2]
[369037448,1751441445261,-460.0,0.00016712,2]
[369037450,1751441445270,-461.40865695,0.00016712,2]
[369037452,1751441445279,-460.0,0.00016712,2]
[369037454,1751441445288,-3391.71,0.00016712,2]
[369037456,1751441445297,-660.44,0.00016712,2]
[369037458,1751441445306,-585.11,0.00016712,2]
[369037459,1751441445315,-460.0,0.00016712,2]
[369037462,1751441445325,-460.0,0.00016712,2]
[369037464,1751441445334,-460.0,0.00016712,2]
[369037466,1751441445344,-716.13,0.00016712,2]
[369037467,1751441445353,-460.0,0.00016712,2]
[369037470,1751441445363,-460.0,0.00016712,2]
[369037471,1751441445372,-413.69222839,0.00016712,2]
[369037473,1751441445381,-460.0,0.00016712,2]
[369037475,1751441445390,-635.3,0.00016712,2]
[369037477,1751441445400,-460.0,0.00016712,2]
[369037479,1751441445409,-460.0,0.00016712,2]
[369037481,1751441445418,-151.0,0.00016712,2]
[369037483,1751441445427,-460.0,0.00016712,2]
[369037485,1751441445437,-460.0,0.00016712,2]
[369037487,1751441445445,-460.0,0.00016712,2]
[369037489,1751441445454,-460.0,0.00016712,2]
[369037491,1751441445464,-460.0,0.00016712,2]
[369037493,1751441445473,-151.0,0.00016712,2]
[369037495,1751441445482,-460.0,0.00016712,2]
[369037497,1751441445491,-460.0,0.00016712,2]
[369037499,1751441445500,-151.0,0.00016712,2]
[369037501,1751441445509,-608.54,0.00016712,2]
[369037503,1751441445519,-965.77,0.00016712,2]
[369037505,1751441445527,-1763.88,0.00016712,2]
[369037507,1751441445537,-151.0,0.00016712,2]
[369037509,1751441445546,-633.96,0.00016712,2]
[369037511,1751441445556,-460.0,0.00016712,2]
[369037513,1751441445565,-460.0,0.00016712,2]
[369037515,1751441445574,-465.17,0.00016712,2]
[369037517,1751441445583,-460.0,0.00016712,2]
[369037519,1751441445592,-4271.35,0.00016712,2]
[369037521,1751441445602,-460.0,0.00016712,2]
[369037523,1751441445611,-1528.22,0.00016712,2]
[369037525,1751441445620,-151.0,0.00016712,2]
[369037527,1751441445629,-552.73,0.00016712,2]
[369037529,1751441445638,-460.0,0.00016712,2]
[369037531,1751441445648,-5813.8,0.00016712,2]
[369037533,1751441445658,-605.07,0.00016712,2]
[369037535,1751441445667,-1964.86,0.00016712,2]
[369037537,1751441445677,-460.0,0.00016712,2]
[369037539,1751441445686,-460.0,0.00016712,2]
[369037541,1751441445695,-585.87,0.00016712,2]
[369037543,1751441445704,-460.0,0.00016712,2]
[369037545,1751441445714,-1257.46,0.00016712,2]
[369037547,1751441445723,-560.53,0.00016712,2]
[369037549,1751441445732,-460.0,0.00016712,2]
[369037551,1751441445742,-458.86277297,0.00016712,2]
[369037553,1751441445751,-460.0,0.00016712,2]
[369037555,1751441445760,-460.0,0.00016712,2]
[369037557,1751441445769,-460.0,0.00016712,2]
[369037559,1751441445778,-460.0,0.00016712,2]
[369037561,1751441445787,-460.0,0.00016712,2]
[369037563,1751441445797,-650.11,0.00016712,2]
[369037565,1751441445806,-446.50192398,0.00016712,2]
[369037567,1751441445815,-616.68,0.00016712,2]
[369037569,1751441445825,-460.0,0.00016712,2]
[369037571,1751441445834,-500.0,0.00016773,2]
[369037573,1751441445843,-500.0,0.00016773,2]
[369037575,1751441445853,-1000.0,0.00016921,2]
[369037577,1751441445861,-1000.62422656,0.00016921,2]
[369037579,1751441445871,-432.01104976,0.00016921,2]
[369037581,1751441445880,-1000.0,0.00016921,2]
[369037583,1751441445890,-2285.4328756,0.00016954,2]
[369037585,1751441445899,-500.0,0.00016973,2]
[369037587,1751441445909,-1345.43,0.00016985,2]
[369037589,1751441445918,-1345.43,0.00016985,2]
[369037591,1751441445928,-1345.43,0.00016985,2]
[369037593,1751441445940,-460.0,0.00016986,2]
[369037595,1751441445951,-460.0,0.00016986,2]
[369037598,1751441445960,-460.0,0.00016986,2]
[369037599,1751441445969,-460.0,0.00016986,2]
[369037601,1751441445979,-454.57387414,0.00016986,2]
[369037603,1751441445988,-460.0,0.00016986,2]
[369037605,1751441445998,-460.0,0.00016986,2]
[369037607,1751441446007,-460.0,0.00016986,2]
[369037609,1751441446017,-460.0,0.00016986,2]
[369037611,1751441446026,-460.0,0.00016986,2]
[369037613,1751441446036,-460.0,0.00016986,2]
[369037615,1751441446045,-489.90245312,0.00016986,2]
[369037617,1751441446054,-460.0,0.00016986,2]
[369037619,1751441446065,-460.0,0.00016986,2]
[369037621,1751441446074,-460.0,0.00016986,2]
[369037623,1751441446083,-460.0,0.00016986,2]
[369037625,1751441446092,-460.0,0.00016986,2]
[369037627,1751441446104,-460.0,0.00016986,2]
[369037629,1751441446114,-460.0,0.00016986,2]
[369037631,1751441446123,-460.0,0.00016986,2]
[369037633,1751441446133,-460.0,0.00016986,2]
[369037635,1751441446143,-460.0,0.00016986,2]
[369037638,1751441446152,-460.0,0.00016986,2]
[369037640,1751441446161,-735.62,0.00016986,2]
[369037641,1751441446171,-700.62,0.00016986,2]
[369037643,1751441446180,-460.0,0.00016986,2]
[369037645,1751441446190,-154.67845889,0.00016986,2]
[369037647,1751441446199,-460.0,0.00016986,2]
[369037649,1751441446208,-460.0,0.00016986,2]
[369037651,1751441446218,-460.0,0.00016986,2]
[369037653,1751441446227,-460.0,0.00016986,2]
[369037655,1751441446236,-460.0,0.00016986,2]
[369037657,1751441446246,-151.081595,0.00016986,2]
[369037659,1751441446255,-460.0,0.00016986,2]
[369037661,1751441446265,-469.0,0.00016986,2]
[369037663,1751441446274,-536.5,0.00016986,2]
[369037665,1751441446283,-460.0,0.00016986,2]
[369037667,1751441446292,-460.0,0.00016986,2]
[369037668,1751441446302,-460.0,0.00016986,2]
[369037669,1751441446311,-460.0,0.00016986,2]
[369037670,1751441446320,-151.0,0.00016986,2]
[369037671,1751441446329,-404.54385434,0.00016986,2]
[369037672,1751441446339,-460.0,0.00016986,2]
[369037673,1751441446348,-535.22233151,0.00016986,2]
[369037674,1751441446358,-460.0,0.00016986,2]
[369037675,1751441446368,-460.0,0.00016986,2]
[369037676,1751441446377,-460.0,0.00016986,2]
[369037677,1751441446387,-460.0,0.00016986,2]
[369037678,1751441446396,-460.0,0.00016986,2]
[369037679,1751441446405,-151.0,0.00016986,2]
[369037680,1751441446415,-460.0,0.00016986,2]
[369037681,1751441446424,-1338.344423,0.00016986,2]
[369037682,1751441446434,-1338.344423,0.00016986,2]
[369037684,1751441446443,-460.0,0.00016986,2]
[369037686,1751441446452,-460.0,0.00016986,2]
[369037688,1751441446462,-460.0,0.00016986,2]
[369037691,1751441446473,-460.0,0.00016986,2]
[369037694,1751441446482,-460.0,0.00016986,2]
[369037697,1751441446491,-460.0,0.00016986,2]
[369037700,1751441446501,-151.0,0.00016986,2]
[369037703,1751441446510,-460.0,0.00016986,2]
[369037706,1751441446519,-460.0,0.00016986,2]
[369037708,1751441446530,-460.0,0.00016986,2]
[369037710,1751441446539,-500.0,0.00016986,2]
[369037712,1751441446549,-460.0,0.00016986,2]
[369037714,1751441446559,-556.67,0.00016986,2]
[369037716,1751441446568,-659.26,0.00016986,2]
[369037718,1751441446578,-460.0,0.00016986,2]
[369037720,1751441446587,-507.18873573,0.00016986,2]
[369037722,1751441446597,-460.0,0.00016986,2]
[369037724,1751441446606,-168.046531,0.00016986,2]
[369037726,1751441446615,-460.0,0.00016986,2]
[369037728,1751441446624,-168.046531,0.00016986,2]
[369037730,1751441446633,-151.0,0.00016986,2]
[369037732,1751441446643,-460.0,0.00016986,2]
[369037734,1751441446652,-547.13,0.00016986,2]
[369037736,1751441446661,-460.0,0.00016986,2]
[369037738,1751441446670,-705.14,0.00016986,2]
[369037740,1751441446680,-1940.82,0.00016986,2]
[369037742,1751441446690,-460.0,0.00016986,2]
[369037745,1751441446700,-460.0,0.00016986,2]
[369037746,1751441446708,-460.0,0.00016986,2]
[369037748,1751441446718,-460.0,0.00016986,2]
[369037750,1751441446727,-460.0,0.00016986,2]
[369037753,1751441446736,-712.66,0.00016986,2]
[369037755,1751441446745,-460.0,0.00016986,2]
[369037756,1751441446755,-460.0,0.00016986,2]
[369037758,1751441446764,-460.0,0.00016986,2]
[369037761,1751441446774,-819.74,0.00016986,2]
[369037763,1751441446783,-5214.35,0.00016986,2]
[369037764,1751441446793,-151.0,0.00016986,2]
[369037767,1751441446803,-151.0,0.00016986,2]
[369037769,1751441446812,-1560.64,0.00016986,2]
[369037770,1751441446821,-460.0,0.00016986,2]
[369037773,1751441446830,-460.0,0.00016986,2]
[369037775,1751441446840,-173.86964263,0.00016986,2]
[369037777,1751441446849,-664.930069,0.00016986,2]
[369037779,1751441446859,-664.930069,0.00016986,2]
[369037780,1751441446868,-821.2,0.00016986,2]
[369037782,1751441446878,-646.41,0.00016986,2]
[369037784,1751441446887,-1196.87,0.00016986,2]
[369037787,1751441446897,-3084.42,0.00016986,2]
[369037788,1751441446906,-1468.84,0.00016986,2]
[369037790,1751441446915,-460.0,0.00016986,2]
[369037793,1751441446925,-460.0,0.00016986,2]
[369037794,1751441446935,-460.0,0.00016986,2]
[369037796,1751441446947,-460.0,0.00016986,2]
[369037798,1751441446956,-460.0,0.00016986,2]
[369037800,1751441446965,-460.0,0.00016986,2]
[369037802,1751441446974,-460.0,0.00016986,2]
[369037804,1751441446984,-825.96,0.00016986,2]
[369037806,1751441446993,-635.85,0.00016986,2]
[369037808,1751441447003,-2951.4,0.00016986,2]
[369037810,1751441447014,-460.0,0.00016986,2]
[369037812,1751441447024,-460.0,0.00016986,2]
[369037814,1751441447033,-460.0,0.00016986,2]
[369037816,1751441447042,-1024.46,0.00016986,2]
[369037818,1751441447051,-480.1589358,0.00016986,2]
[369037820,1751441447061,-744.53,0.00016986,2]
[369037822,1751441447070,-151.0,0.00016986,2]
[369037824,1751441447082,-460.0,0.00016986,2]
[369037826,1751441447091,-153.373957,0.00016986,2]
[369037828,1751441447101,-460.0,0.00016986,2]
[369037830,1751441447110,-460.0,0.00016986,2]
[369037832,1751441447119,-1355.15,0.00016986,2]
[369037834,1751441447128,-425.10841771,0.00016986,2]
[369037836,1751441447137,-151.0,0.00016986,2]
[369037838,1751441447147,-153.373957,0.00016986,2]
[369037840,1751441447156,-527.39547607,0.00016986,2]
[369037856,1751441447295,-460.0,0.00016986,2]
[369037858,1751441447305,-460.0,0.00016986,2]
[369037860,1751441447315,-632.78,0.00016986,2]
[369037862,1751441447324,-700.68142,0.00016986,2]
[369037864,1751441447333,-460.0,0.00016986,2]
[369037866,1751441447342,-460.0,0.00016986,2]
[369037868,1751441447352,-464.60837402,0.00016986,2]
[369037870,1751441447361,-700.68142,0.00016986,2]
[369037872,1751441447370,-460.0,0.00016986,2]
[369037874,1751441447380,-460.0,0.00016986,2]
[369037876,1751441447389,-460.0,0.00016986,2]
[369037878,1751441447398,-469.49158726,0.00016986,2]
[369037880,1751441447407,-460.0,0.00016986,2]
[369037882,1751441447417,-460.0,0.00016986,2]
[369037884,1751441447426,-151.0,0.00016986,2]
[369037886,1751441447436,-460.0,0.00016986,2]
[369037888,1751441447445,-281.59686209,0.00016986,2]
[369037890,1751441447455,-460.0,0.00016986,2]
[369037892,1751441447464,-460.0,0.00016986,2]
[369037894,1751441447474,-2453.99,0.00016986,2]
[369037896,1751441447485,-1406.74,0.00016986,2]
[369037898,1751441447495,-726.69,0.00016986,2]
[369037900,1751441447504,-460.0,0.00016986,2]
[369037902,1751441447514,-151.0,0.00016986,2]
[369037904,1751441447524,-2646.04,0.00016986,2]
[369037906,1751441447538,-460.0,0.00016986,2]
[369037908,1751441447547,-460.0,0.00016986,2]
[369037910,1751441447556,-151.0,0.00016986,2]
[369037912,1751441447566,-460.0,0.00016986,2]
[369037914,1751441447575,-898.21,0.00016986,2]
[369037916,1751441447584,-151.0,0.00016986,2]
[369037918,1751441447593,-277.73767652,0.00016986,2]
[369037920,1751441447602,-460.0,0.00016986,2]
[369037922,1751441447611,-3391.71,0.00016986,2]
[369037924,1751441447621,-660.44,0.00016986,2]
[369037926,1751441447630,-585.11,0.00016986,2]
[369037928,1751441447639,-460.0,0.00016986,2]
[369037930,1751441447648,-460.0,0.00016986,2]
[369037932,1751441447657,-460.0,0.00016986,2]
[369037934,1751441447667,-716.13,0.00016986,2]
[369037936,1751441447676,-460.0,0.00016986,2]
[369037938,1751441447685,-500.0,0.00016986,2]
[369037940,1751441447695,-635.3,0.00016986,2]
[369037942,1751441447704,-460.0,0.00016986,2]
[369037944,1751441447713,-460.0,0.00016986,2]
[369037946,1751441447722,-151.0,0.00016986,2]
[369037948,1751441447732,-460.0,0.00016986,2]
[369037950,1751441447742,-460.0,0.00016986,2]
[369037952,1751441447751,-500.0,0.00016986,2]
[369037954,1751441447760,-460.0,0.00016986,2]
[369037956,1751441447769,-151.0,0.00016986,2]
[369037958,1751441447779,-460.0,0.00016986,2]
[369037960,1751441447788,-460.0,0.00016986,2]
[369037962,1751441447797,-151.0,0.00016986,2]
[369037964,1751441447806,-608.54,0.00016986,2]
[369037966,1751441447816,-965.77,0.00016986,2]
[369037968,1751441447826,-1763.88,0.00016986,2]
[369037970,1751441447835,-633.96,0.00016986,2]
[369037972,1751441447844,-460.0,0.00016986,2]
[369037974,1751441447853,-522.90970938,0.00016986,2]
[369037976,1751441447863,-465.17,0.00016986,2]
[369037978,1751441447872,-4271.35,0.00016986,2]
[369037980,1751441447882,-460.0,0.00016986,2]
[369037982,1751441447891,-1528.22,0.00016986,2]
[369037984,1751441447900,-151.0,0.00016986,2]
[369037986,1751441447909,-552.73,0.00016986,2]
[369037988,1751441447919,-460.0,0.00016986,2]
[369037990,1751441447928,-5813.8,0.00016986,2]
[369037992,1751441447939,-605.07,0.00016986,2]
[369037994,1751441447949,-1964.86,0.00016986,2]
[369037996,1751441447958,-460.0,0.00016986,2]
[369037998,1751441447967,-460.0,0.00016986,2]
[369038000,1751441447976,-585.87,0.00016986,2]
[369038002,1751441447986,-1257.46,0.00016986,2]
[369038004,1751441447995,-460.0,0.00016986,2]
[369038006,1751441448005,-560.53,0.00016986,2]
[369038008,1751441448015,-151.0,0.00016986,2]
[369038010,1751441448024,-151.0,0.00016986,2]
[369038012,1751441448034,-460.0,0.00016986,2]
[369038014,1751441448043,-460.0,0.00016986,2]
[369038016,1751441448052,-460.0,0.00016986,2]
[369038018,1751441448061,-466.5615749,0.00016986,2]
[369038020,1751441448070,-460.0,0.00016986,2]
[369038022,1751441448079,-650.11,0.00016986,2]
[369038024,1751441448088,-616.68,0.00016986,2]
[369038026,1751441448098,-460.0,0.00016986,2]
[369038028,1751441448107,-1721.05050748,0.00016991,2]
[369038030,1751441448117,-81065.85846226,0.00017,2]
[369038032,1751441448127,-151.0,0.00017,2]
[369038033,1751441448136,-500.0,0.00017021,2]
[369038035,1751441448145,-501.36610691,0.00017021,2]
[369038037,1751441448154,-1000.0,0.00017021,2]
[369038039,1751441448164,-3000.0,0.00017022,2]
[369038041,1751441448174,-195.76878551,0.00017177,2]
[369038044,1751441448184,-151.0,0.000172,2]
[369038046,1751441448193,-1345.43,0.00017259,2]
[369038048,1751441448203,-1345.43,0.00017259,2]
[369038049,1751441448212,-1345.43,0.00017259,2]
[369038052,1751441448222,-460.0,0.0001726,2]
[369038054,1751441448231,-460.0,0.0001726,2]
[369038056,1751441448240,-460.0,0.0001726,2]
[369038058,1751441448250,-460.0,0.0001726,2]
[369038060,1751441448259,-484.49307936,0.0001726,2]
[369038062,1751441448269,-460.0,0.0001726,2]
[369038064,1751441448278,-520.175804,0.0001726,2]
[369038066,1751441448287,-460.0,0.0001726,2]
[369038068,1751441448297,-460.0,0.0001726,2]
[369038070,1751441448306,-151.0,0.0001726,2]
[369038072,1751441448316,-194.18,0.0001726,2]
[369038074,1751441448325,-460.0,0.0001726,2]
[369038076,1751441448335,-460.0,0.0001726,2]
[369038078,1751441448345,-392.63589364,0.0001726,2]
[369038080,1751441448355,-460.0,0.0001726,2]
[369038082,1751441448365,-460.0,0.0001726,2]
[369038084,1751441448374,-460.0,0.0001726,2]
[369038086,1751441448384,-460.0,0.0001726,2]
[369038088,1751441448394,-460.0,0.0001726,2]
[369038090,1751441448404,-460.0,0.0001726,2]
[369038092,1751441448413,-151.0,0.0001726,2]
[369038094,1751441448423,-151.0,0.0001726,2]
[369038096,1751441448432,-151.0,0.0001726,2]
[369038098,1751441448442,-460.0,0.0001726,2]
[369038100,1751441448451,-735.62,0.0001726,2]